bitfinex/quotes_ETHUSD_20241106
["timestamp","ask_amount","ask_price","bid_price","bid_amount"]
[1730864485513,0.01,2589.6,2589.2,3.86219]
[1730864485829,0.01,2589.3,2589.2,3.86219]
[1730864486226,0.03831607,2589.3,2589.2,3.86219]
[1730864486430,0.01,2589.7,2589.0,3.86249]
[1730864486431,0.01,2589.7,2589.6,3.86152]
[1730864486821,0.01,2589.7,2589.0,4.3539026]
[1730864486822,0.01,2589.5,2589.0,4.3538526]
[1730864487154,0.01,2589.2,2588.8,3.86274]
[1730864487354,0.01,2589.2,2588.6,3.86305]
[1730864487563,0.01,2588.8,2588.1,0.4914126]
[1730864487729,0.01,2588.8,2588.6,3.86296]
[1730864487915,0.03690158,2588.7,2588.6,3.86296]
[1730864488111,0.03690158,2588.7,2588.4,3.86331]
[1730864488112,0.03690158,2588.7,2588.5,3.86318]
[1730864488395,0.01,2589.0,2588.3,3.86353]
[1730864488568,0.01,2589.0,2588.8,3.86279]
[1730864488859,0.7708,2590.1,2588.9,0.56866835]
[1730864489025,0.7708,2590.1,2589.9,3.86104]
[1730864489372,0.7708,2590.1,2589.8,3.86128]
[1730864489657,0.01,2589.9,2589.8,3.86128]
[1730864489863,0.01,2589.7,2588.6,7.60419518]
[1730864490015,0.01,2589.7,2589.5,3.86174]
[1730864490724,0.01,2589.7,2589.0,0.5495267]
[1730864490946,0.01,2589.9,2589.6,3.8616]
[1730864491136,0.01,2589.7,2589.6,3.8616]
[1730864491477,0.01,2589.9,2589.6,3.8616]
[1730864491675,0.01,2589.9,2589.7,3.86142]
[1730864491974,0.7808,2590.1,2589.8,3.8613]
[1730864492142,0.7808,2590.1,2589.9,3.86101]
[1730864492328,0.01,2590.1,2590.0,3.861]
[1730864492532,0.01,2590.3,2590.2,3.8607]
[1730864492756,0.7808,2590.6,2590.4,3.86028]
[1730864492928,0.01,2590.5,2590.2,3.8606]
[1730864493245,0.01,2590.3,2590.0,3.86093]
[1730864493445,0.01,2590.3,2590.2,3.8607]
[1730864494081,0.01,2590.1,2589.8,3.86124]
[1730864494439,0.03505126,2590.0,2589.9,3.86114]
[1730864494970,0.04505126,2590.0,2589.9,3.86115]
[1730864495171,0.03505126,2590.0,2589.9,3.86115]
[1730864495472,0.01,2590.0,2589.9,3.86115]
[1730864495680,3.0295796,2590.8,2590.7,3.85996]
[1730864495681,0.0295796,2590.8,2590.7,3.85996]
[1730864495835,0.01,2592.1,2591.1,3.85936]
[1730864496056,0.01,2591.8,2591.7,3.85847]
[1730864496261,0.01,2591.8,2591.2,0.61258659]
[1730864496497,0.04449462,2591.8,2591.7,3.85847]
[1730864496800,0.01,2591.6,2591.5,3.85876]
[1730864496960,0.01,2591.8,2591.3,3.85906]
[1730864497159,0.01,2591.8,2591.2,3.85912]
[1730864497477,0.01,2591.6,2591.5,3.85876]
[1730864497795,0.01,2591.8,2591.7,3.85847]
[1730864498005,0.01,2591.6,2591.5,3.85865]
[1730864498161,0.01,2591.6,2591.1,3.85932]
[1730864498357,0.01,2591.4,2591.3,3.85894]
[1730864499565,0.01,2591.6,2591.5,3.85876]
[1730864499903,0.01,2591.6,2591.4,3.85879]
[1730864500201,0.04502191,2591.6,2591.4,3.85879]
[1730864500417,0.01,2591.6,2591.5,3.85876]
[1730864500901,0.01,2591.4,2591.3,3.85906]
[1730864501104,0.7708,2592.1,2591.3,3.85906]
[1730864501105,0.01,2591.6,2591.5,3.85876]
[1730864502591,0.01,2591.1,2590.9,3.85953]
[1730864502791,0.01,2590.7,2590.6,3.8601]
[1730864503271,0.01,2591.7,2590.8,0.0648]
[1730864503513,0.01,2591.2,2591.1,3.85922]
[1730864503722,0.01,2591.5,2591.4,3.85891]
[1730864504002,0.01,2591.5,2591.2,3.85908]
[1730864504323,0.01,2591.5,2591.4,3.85891]
[1730864504830,0.01,2591.5,2591.2,3.85908]
[1730864505029,0.01,2591.3,2591.2,3.85908]
[1730864505328,0.01,2591.6,2591.5,3.85876]
[1730864505495,0.01,2591.6,2591.4,3.85881]
[1730864505820,0.01,2591.6,2591.3,3.85905]
[1730864506020,0.01,2591.3,2591.0,3.85947]
[1730864506227,0.01,2591.3,2591.1,4.32354356]
[1730864506430,0.01,2591.3,2591.2,3.85921]
[1730864507022,0.01,2591.3,2591.1,3.85923]
[1730864507241,0.01,2591.3,2591.2,3.85921]
[1730864507426,0.01,2591.1,2591.0,3.8595]
[1730864507991,0.8127,2591.1,2590.7,4.48333993]
[1730864508342,0.01,2589.9,2589.7,3.86144]
[1730864508503,0.01,2590.1,2589.8,3.8613]
[1730864508701,0.01,2590.2,2590.1,3.86085]
[1730864509115,0.01,2590.2,2589.9,3.86102]
[1730864509323,0.01,2590.0,2589.9,3.86115]
[1730864510129,0.01,2590.0,2589.7,3.86133]
[1730864510298,0.01,2589.8,2589.5,3.86169]
[1730864510503,0.01,2589.8,2589.7,3.86145]
[1730864510701,0.01,2589.6,2589.3,3.862]
[1730864510927,0.8127,2589.6,2589.5,3.86174]
[1730864511200,0.01,2589.8,2589.5,3.86174]
[1730864511390,0.01,2589.8,2589.7,3.86145]
[1730864511880,0.01,2589.8,2589.5,3.86174]
[1730864512185,0.01,2589.6,2589.5,3.86174]
[1730864512404,0.01,2589.8,2589.7,3.86145]
[1730864512600,0.8127,2590.0,2589.9,3.86115]
[1730864512807,0.8127,2590.0,2589.8,3.86128]
[1730864513154,0.01,2590.0,2589.9,3.86115]
[1730864514199,0.01,2590.0,2589.5,3.86172]
[1730864514353,4.66311,2590.4,2589.5,3.86172]
[1730864514354,0.01,2589.8,2589.5,3.86172]
[1730864514559,0.01,2589.8,2589.7,3.86145]
[1730864514855,0.01,2590.0,2589.9,3.86115]
[1730864516891,0.01,2590.0,2589.7,3.86131]
[1730864517072,4.60833039,2590.4,2589.8,3.86128]
[1730864517279,0.5854273,2590.3,2589.8,3.86128]
[1730864517473,0.55,2590.2,2589.8,3.86121]
[1730864517669,0.55,2590.2,2589.7,3.86131]
[1730864517992,1.74106296,2590.2,2589.7,3.86131]
[1730864518192,2.00535137,2590.4,2589.7,0.386131]
[1730864518193,1.60833039,2590.4,2589.7,0.386131]
[1730864518563,1.19106296,2590.6,2590.1,7.72156]
[1730864518706,1.19106296,2590.6,2590.1,3.86076]
[1730864519014,1.19106296,2590.5,2590.1,3.86076]
[1730864519308,1.19106296,2590.5,2589.9,3.86113]
[1730864519309,1.19106296,2590.3,2589.9,3.86113]
[1730864519510,4.19106296,2590.3,2589.7,3.86133]
[1730864519682,3.0,2590.0,2589.5,3.86164]
[1730864519889,4.19106296,2590.1,2589.9,3.86115]
[1730864520219,4.19106296,2590.2,2590.0,3.86099]
[1730864520422,1.99306296,2590.4,2590.3,3.86055]
[1730864520717,1.19106296,2590.8,2590.6,3.8601]
[1730864520900,2.7791469,2590.9,2590.4,3.86028]
[1730864521082,0.86452383,2590.9,2590.5,3.86016]
[1730864521289,3.86005,2590.7,2590.0,4.5229612]
[1730864521600,0.802,2590.5,2590.0,3.8609]
[1730864521799,7.6623,2590.5,2589.6,4.9737412]
[1730864522003,4.99306296,2590.5,2590.0,3.86099]
[1730864522322,4.19106296,2590.4,2590.0,3.86099]
[1730864522527,4.19106296,2590.4,2589.6,1.1122512]
[1730864522699,4.19106296,2590.4,2589.8,3.8613]
[1730864522885,1.19106296,2590.6,2590.4,3.8604]
[1730864523205,1.19106296,2590.7,2590.6,3.86001]
[1730864523410,1.19106296,2590.8,2590.6,3.86001]
[1730864523732,1.19106296,2590.8,2590.7,3.85996]
[1730864523893,1.19106296,2590.9,2590.7,3.85996]
[1730864524099,1.19106296,2590.8,2590.7,3.85996]
[1730864524504,4.19106296,2590.9,2590.7,3.85996]
[1730864524699,1.20406935,2590.8,2590.7,3.85996]
[1730864524898,4.20406935,2590.9,2590.5,3.86019]
[1730864525203,1.20406935,2590.8,2590.5,7.72035]
[1730864525397,1.20406935,2590.8,2590.6,3.86001]
[1730864525741,1.20406935,2590.8,2590.3,3.86047]
[1730864525887,1.20406935,2590.7,2590.5,3.86023]
[1730864526095,1.20406935,2590.8,2590.6,3.8601]
[1730864526300,4.20406935,2590.7,2590.6,3.8601]
[1730864526502,3.0,2590.7,2590.6,3.8601]
[1730864526813,4.20406935,2590.8,2590.3,7.72091]
[1730864527119,1.20406935,2590.6,2590.4,3.86037]
[1730864527324,1.20406935,2590.5,2590.4,3.86037]
[1730864527845,1.20406935,2590.5,2590.2,3.86062]
[1730864528136,1.20406935,2590.5,2589.9,0.6620512]
[1730864528137,0.802,2590.3,2589.9,0.6620512]
[1730864528310,4.20406935,2590.2,2590.1,3.86085]
[1730864528640,4.20406935,2590.4,2590.2,3.8607]
[1730864528846,4.20406935,2590.4,2590.3,3.86055]
[1730864529046,4.58808394,2590.5,2590.3,3.86055]
[1730864529262,1.58808394,2590.4,2590.0,3.86092]
[1730864529554,3.0,2590.1,2589.6,0.6620512]
[1730864529700,4.20536239,2590.0,2589.6,3.8615]
[1730864529897,1.20536239,2589.8,2589.4,3.86181]
[1730864530100,1.20536239,2589.7,2589.4,3.86188]
[1730864530345,3.0,2589.5,2589.3,3.86203]
[1730864530545,4.20536239,2589.5,2589.2,3.86212]
[1730864530849,4.20536239,2589.3,2589.2,3.86212]
[1730864531004,3.802,2589.2,2588.7,3.86293]
[1730864531332,4.2057583,2588.8,2588.4,3.86335]
[1730864531538,4.2057583,2588.9,2588.8,3.86279]
[1730864531700,4.2057583,2589.2,2589.1,3.86234]
[1730864531901,1.58808394,2589.3,2588.8,0.65982666]
[1730864531902,1.2057583,2589.3,2588.8,0.65982666]
[1730864532100,1.2057583,2589.5,2589.3,3.86204]
[1730864532342,1.2057583,2589.6,2589.5,3.86174]
[1730864532527,1.2057583,2590.0,2589.6,3.8616]
[1730864532803,1.20500443,2590.2,2590.1,3.86085]
[1730864533224,1.20500443,2590.3,2590.2,3.8607]
[1730864534311,1.20500443,2590.4,2590.3,3.86055]
[1730864534541,1.58808394,2590.4,2590.2,3.8607]
[1730864534742,1.58808394,2590.3,2589.8,3.86125]
[1730864535044,1.20574195,2589.9,2589.4,3.8618]
[1730864535247,2.79014204,2590.1,2589.4,3.8618]
[1730864535248,1.20590069,2589.6,2589.5,3.86174]
[1730864535412,4.60765593,2589.7,2589.4,3.8618]
[1730864535610,1.20590202,2589.5,2589.4,3.8618]
[1730864535941,4.20590202,2589.8,2589.6,3.8616]
[1730864536157,4.20590202,2589.8,2589.7,3.86145]
[1730864536461,4.20590202,2589.9,2589.8,3.8613]
[1730864536604,4.20590202,2590.0,2589.9,3.86115]
[1730864536805,1.20590202,2590.0,2589.9,3.86115]
[1730864537134,1.60765593,2590.0,2589.6,3.86148]
[1730864537348,4.20583297,2589.8,2589.6,3.86148]
[1730864537549,4.20583297,2589.8,2589.7,3.86145]
[1730864537759,4.60777729,2589.8,2589.6,3.86148]
[1730864537943,4.60777729,2589.8,2589.1,0.4502]
[1730864537944,0.55,2589.6,2589.1,0.65982666]
[1730864538271,1.2059289,2589.4,2589.2,3.86217]
[1730864538767,4.2059289,2589.3,2589.2,3.86217]
[1730864539130,1.2059289,2589.3,2589.2,3.86217]
[1730864539369,4.60777729,2589.4,2589.2,3.86217]
[1730864539669,1.20556672,2589.3,2588.8,3.86276]
[1730864539891,1.20558595,2588.9,2588.5,3.86324]
[1730864540034,1.20558595,2588.8,2588.4,3.86339]
[1730864540374,1.20558595,2588.7,2588.4,3.86339]
[1730864540530,1.20558595,2588.6,2588.0,3.86394]
[1730864540730,1.20558595,2588.6,2588.2,3.86362]
[1730864541154,1.60777729,2588.6,2588.2,3.86362]
[1730864541472,5.38817729,2588.5,2587.8,3.86421]
[1730864541678,5.38817729,2588.5,2587.6,3.86452]
[1730864541679,3.0,2588.1,2587.6,3.86452]
[1730864541970,2.38817729,2587.9,2587.2,3.86508]
[1730864542155,5.15777729,2587.8,2587.3,3.86502]
[1730864542472,4.60777729,2588.0,2587.8,3.86428]
[1730864542680,3.0,2588.4,2588.3,3.86353]
[1730864542975,3.15322329,2588.6,2588.4,3.86339]
[1730864543276,1.545446,2588.6,2588.3,3.86353]
[1730864543478,4.41324,2588.5,2587.9,3.86406]
[1730864543633,6.02101729,2588.5,2587.9,3.86406]
[1730864543835,0.55,2588.3,2587.7,3.86439]
[1730864544173,4.41393,2588.1,2587.3,3.86496]
[1730864544481,0.55,2588.1,2587.5,3.86472]
[1730864544683,3.7804,2588.2,2587.8,3.86418]
[1730864544684,0.7804,2588.2,2587.8,3.86418]
[1730864545542,0.7804,2588.2,2587.9,3.86412]
[1730864545741,0.7804,2588.2,2587.8,3.86418]
[1730864545949,0.55,2588.1,2587.6,3.86454]
[1730864546392,3.7804,2588.2,2587.3,0.65982666]
[1730864546612,1.545446,2588.6,2587.6,1.11002666]
[1730864546797,1.545446,2588.6,2587.8,3.86415]
[1730864547091,3.8638,2588.2,2587.4,3.86482]
[1730864547242,3.86394,2588.1,2587.4,3.86482]
[1730864547442,0.7804,2587.9,2587.5,3.86471]
[1730864547643,0.7804,2587.9,2587.2,3.86509]
[1730864547883,0.7804,2587.9,2587.3,3.865]
[1730864547884,0.55,2587.8,2587.3,3.865]
[1730864548043,0.55,2587.8,2586.8,1.14052552]
[1730864548242,0.7804,2587.9,2587.6,3.86457]
[1730864548439,0.7804,2587.9,2587.5,3.86467]
[1730864548674,0.7804,2587.9,2586.9,0.61816]
[1730864548990,0.7804,2587.9,2587.8,3.86428]
[1730864549160,0.8005,2588.3,2587.2,0.4502]
[1730864549359,0.8005,2588.3,2588.2,3.86368]
[1730864549870,0.8005,2588.3,2588.0,3.86397]
[1730864550472,0.8005,2588.3,2587.8,3.86419]
[1730864550890,3.8005,2588.3,2587.7,3.86433]
[1730864551182,3.8005,2588.3,2587.6,3.86448]
[1730864551183,2.37334811,2588.3,2587.9,3.86413]
[1730864551393,0.8005,2588.3,2588.1,3.86371]
[1730864551546,0.8005,2588.3,2588.2,3.86368]
[1730864551745,1.545446,2588.6,2587.7,3.86438]
[1730864551943,0.8005,2588.7,2588.2,3.86367]
[1730864552800,0.8005,2588.7,2587.8,3.86419]
[1730864552955,0.8005,2588.7,2588.5,3.86323]
[1730864553259,1.545348,2588.8,2588.7,3.86294]
[1730864553664,3.86209,2589.3,2588.7,3.86293]
[1730864553899,2.00180106,2589.6,2589.3,3.86204]
[1730864554212,3.86191,2589.4,2588.7,3.86282]
[1730864554502,3.86205,2589.3,2588.7,3.86282]
[1730864554703,2.74635806,2589.4,2588.3,3.86345]
[1730864554849,1.545057,2589.4,2588.9,3.86254]
[1730864555051,1.545057,2589.4,2588.5,3.86317]
[1730864555052,6.10104387,2589.4,2588.5,3.86317]
[1730864555251,4.89974281,2589.4,2588.5,3.86317]
[1730864555457,4.545057,2589.4,2588.1,12.02136518]
[1730864555684,1.545057,2589.4,2588.9,3.86263]
[1730864555999,1.545057,2589.4,2588.8,3.86265]
[1730864556381,3.0,2589.3,2588.8,3.86265]
[1730864557791,6.86215,2589.3,2588.6,3.86299]
[1730864557967,3.0,2588.9,2588.3,3.86345]
[1730864558171,3.0,2588.9,2587.6,7.53939518]
[1730864558172,3.0,2588.7,2587.6,11.85413518]
[1730864558370,3.0,2588.7,2588.2,3.86354]
[1730864558703,0.8005,2588.6,2588.1,3.86383]
[1730864559203,5.06387106,2589.0,2588.1,3.86383]
[1730864559204,1.20130106,2588.9,2588.8,3.8627]
[1730864559502,0.8005,2589.1,2588.8,7.72539]
[1730864559793,0.8005,2589.1,2589.0,3.86249]
[1730864559998,2.74635806,2589.4,2588.9,3.86264]
[1730864559999,1.545057,2589.4,2589.1,3.86228]
[1730864560496,1.545057,2589.4,2589.2,3.86219]
[1730864560697,2.00180106,2589.5,2589.2,3.86219]
[1730864560860,2.00180106,2589.5,2589.1,3.86228]
[1730864560861,2.345324,2589.5,2589.1,3.86228]
[1730864561068,3.0,2589.2,2588.5,3.86324]
[1730864561287,3.0,2589.2,2588.7,3.86292]
[1730864561604,4.20130106,2589.4,2588.9,3.8626]
[1730864561771,3.0,2589.4,2588.9,3.8626]
[1730864562109,3.86214,2589.3,2588.7,3.86292]
[1730864562261,1.20130106,2589.2,2588.7,3.86282]
[1730864562457,4.20130106,2589.2,2588.7,3.86282]
[1730864563504,1.20130106,2589.5,2588.7,0.4502]
[1730864563661,5.06260106,2589.8,2589.2,3.86219]
[1730864563860,1.20130106,2589.8,2589.0,3.86242]
[1730864564101,1.20130106,2589.8,2589.0,3.86243]
[1730864564304,3.86161,2589.6,2589.0,3.86243]
[1730864564608,3.86175,2589.5,2588.7,3.86285]
[1730864564803,0.7627,2589.4,2588.7,0.772587]
[1730864564963,0.7627,2589.4,2589.0,3.86243]
[1730864565161,0.55,2589.5,2589.2,3.8621]
[1730864565366,4.20130106,2589.7,2589.3,3.86204]
[1730864565666,1.20130106,2589.7,2589.4,3.86175]
[1730864565860,1.96400106,2589.8,2589.4,3.86175]
[1730864566061,1.96400106,2590.1,2589.4,0.386175]
[1730864566298,1.20130106,2590.2,2589.9,3.86111]
[1730864566479,1.20130106,2590.3,2589.7,7.72268]
[1730864566804,5.06188106,2590.3,2589.5,3.86162]
[1730864567212,1.20130106,2590.2,2589.6,3.86148]
[1730864567383,1.20130106,2590.1,2589.6,3.86148]
[1730864567568,3.0,2589.9,2589.3,3.86198]
[1730864567765,4.41171,2589.6,2588.9,3.86254]
[1730864568027,4.20130106,2589.5,2589.0,3.06245]
[1730864568170,1.20130106,2589.5,2589.1,3.86233]
[1730864568605,1.20130106,2589.5,2588.9,3.86254]
[1730864568796,3.55,2589.4,2589.0,3.86246]
[1730864568998,4.75130106,2589.4,2589.0,3.86246]
[1730864569370,4.75130106,2589.4,2588.9,3.86254]
[1730864569816,1.20130106,2589.3,2588.9,3.86254]
[1730864569963,4.75130106,2589.4,2588.9,3.86254]
[1730864570503,1.20130106,2589.3,2588.7,3.86284]
[1730864570896,1.20130106,2589.3,2589.1,3.86234]
[1730864570897,4.20130106,2589.2,2589.1,3.86234]
[1730864571140,3.0,2589.3,2589.1,3.86234]
[1730864571270,4.20130106,2589.4,2589.1,3.86234]
[1730864571468,4.98277841,2589.4,2588.4,0.4502]
[1730864571674,1.20130106,2589.2,2588.9,3.86261]
[1730864571911,4.20130106,2589.2,2588.8,3.86269]
[1730864572090,4.20130106,2589.2,2588.8,7.72537]
[1730864572283,1.20130106,2589.1,2588.8,3.86268]
[1730864572502,1.20130106,2589.1,2588.9,3.86258]
[1730864572818,1.7822089,2589.1,2400.0,204.04304545]
[1730864573020,1.7822089,2589.1,2581.8,6.8736126]
[1730864573021,0.01,2583.9,2581.8,6.8736126]
[1730864573224,0.01,2584.3,2583.8,3.87021]
[1730864573372,0.02,2584.5,2583.7,3.87029]
[1730864573575,0.01,2584.5,2583.9,0.3586762]
[1730864573883,3.80284897,2584.3,2583.9,3.87004]
[1730864574086,0.80284897,2584.3,2583.7,3.87029]
[1730864574386,0.02,2584.5,2583.6,3.87055]
[1730864574606,0.82284897,2584.5,2583.6,4.47979183]
[1730864574920,0.02,2584.3,2583.3,3.87094]
[1730864575119,0.01,2583.9,2583.2,0.1256361]
[1730864575280,0.01,2583.6,2583.2,0.1256361]
[1730864575682,0.02,2583.6,2583.2,0.1256361]
[1730864575885,0.01,2583.6,2582.8,3.87169]
[1730864576126,0.01,2583.4,2582.6,0.3847]
[1730864576284,0.02,2583.4,2582.6,0.3847]
[1730864576500,0.01,2583.2,2582.2,3.87255]
[1730864576700,0.02,2583.2,2582.2,3.87255]
[1730864576928,0.02,2583.2,2582.3,3.87251]
[1730864577129,0.02,2583.2,2582.2,0.44993666]
[1730864577309,0.02,2583.2,2582.3,0.44993666]
[1730864577516,0.01,2583.0,2582.4,3.87229]
[1730864577810,0.02,2583.6,2582.6,3.87206]
[1730864578019,0.02,2583.6,2582.4,0.43222267]
[1730864578020,0.02,2583.6,2582.7,0.44993666]
[1730864578321,0.02,2583.6,2583.0,3.87143]
[1730864578734,0.02,2583.8,2583.0,3.87143]
[1730864579197,0.01,2583.5,2582.7,3.87177]
[1730864579385,0.01,2583.7,2583.1,3.87131]
[1730864579585,0.01,2583.6,2583.1,3.87131]
[1730864579787,0.01,2583.7,2583.2,3.87114]
[1730864579984,0.01,2583.6,2583.0,3.87141]
[1730864580715,0.01,2583.5,2582.9,3.87156]
[1730864580916,0.01,2583.5,2582.8,3.87164]
[1730864581087,0.01,2583.6,2582.8,0.774353]
[1730864581435,0.7627,2584.0,2582.2,4.32248666]
[1730864581436,0.02,2583.4,2582.2,0.44993666]
[1730864581591,3.01,2583.6,2583.1,3.87131]
[1730864581892,0.01,2583.4,2583.1,3.87131]
[1730864582088,0.02,2583.4,2582.6,3.87206]
[1730864582324,0.02,2583.1,2582.7,3.8719]
[1730864582543,0.02,2583.1,2582.5,3.87221]
[1730864582837,0.02,2583.1,2582.6,3.87202]
[1730864583036,0.01,2583.1,2582.7,3.87188]
[1730864583329,0.02,2583.4,2582.4,7.63237392]
[1730864583536,0.02,2583.4,2583.1,3.87126]
[1730864583741,0.02,2583.4,2582.9,3.87158]
[1730864584233,0.01,2583.8,2583.3,3.87089]
[1730864584443,0.01,2583.5,2582.9,11.50397392]
[1730864584599,0.01,2583.5,2582.9,3.8716]
[1730864584950,0.01,2583.3,2582.4,7.63237392]
[1730864585094,0.01,2583.4,2582.9,3.87147]
[1730864585297,0.01,2583.6,2583.3,3.87088]
[1730864585531,0.02,2583.8,2583.3,3.87088]
[1730864585740,0.7627,2584.0,2582.9,7.63237392]
[1730864585741,0.01,2583.9,2583.4,3.87084]
[1730864586043,0.01,2583.6,2582.9,7.63237392]
[1730864586334,0.01,2583.5,2582.9,7.63237392]
[1730864586551,0.01,2583.5,2582.4,8.39561131]
[1730864586836,0.02,2583.3,2582.9,3.87155]
[1730864587003,0.02,2583.3,2582.7,3.87188]
[1730864587340,0.02,2583.3,2582.4,7.63237392]
[1730864587341,0.01,2583.3,2582.8,3.87175]
[1730864587539,0.02,2583.3,2582.8,3.87175]
[1730864588046,0.02,2583.3,2582.6,3.87202]
[1730864588195,0.02,2583.3,2582.4,7.63237392]
[1730864588196,0.01,2583.0,2582.2,3.87266]
[1730864588396,0.01,2582.8,2582.3,3.87251]
[1730864588597,3.02,2583.0,2582.3,3.87251]
[1730864588818,3.8709,2583.4,2582.3,3.87251]
[1730864588819,0.01,2583.3,2583.0,3.87146]
[1730864589022,0.7874,2583.6,2583.3,3.87101]
[1730864589023,3.7974,2583.6,2583.3,3.87101]
[1730864589207,0.01,2583.7,2583.4,3.87076]
[1730864589426,0.01,2583.8,2583.4,3.87076]
[1730864589612,0.01,2583.5,2583.4,3.87076]
[1730864589808,0.01,2583.8,2583.4,3.87076]
[1730864590026,0.01,2583.6,2583.4,3.87076]
[1730864590334,0.02,2583.9,2583.5,3.87071]
[1730864590634,0.01,2583.9,2583.7,3.87029]
[1730864590843,0.7874,2584.0,2583.5,3.87068]
[1730864591160,0.7874,2584.0,2583.7,3.87031]
[1730864591349,0.01,2584.3,2583.5,0.46447291]
[1730864591497,0.01,2584.4,2584.1,3.86981]
[1730864591699,0.01,2584.4,2584.0,3.86985]
[1730864592539,0.7874,2585.0,2584.0,3.86985]
[1730864592540,0.01,2585.2,2584.0,4.41256416]
[1730864592699,0.7874,2585.3,2584.1,0.07739911]
[1730864592700,4.65706,2584.2,2584.1,0.07739911]
[1730864593047,0.01,2583.9,2583.2,7.63237392]
[1730864593212,0.7874,2584.2,2583.2,7.63237392]
[1730864593213,0.0528,2584.2,2583.2,7.63237392]
[1730864593401,0.01,2584.4,2583.2,7.63237392]
[1730864593402,0.01,2584.4,2584.0,3.86996]
[1730864593593,0.01,2584.5,2583.8,3.87025]
[1730864593798,0.01,2584.5,2583.9,3.87]
[1730864594032,0.01,2584.5,2584.0,3.86989]
[1730864594293,0.01,2584.5,2584.1,3.8698]
[1730864594536,0.55,2584.6,2584.2,3.86964]
[1730864594744,0.01,2584.7,2583.3,0.44599844]
[1730864594745,0.01,2584.9,2584.5,3.86922]
[1730864594907,0.01,2584.9,2584.6,3.86906]
[1730864595301,0.36292876,2584.6,2583.9,0.7815]
[1730864595522,0.36292876,2584.6,2584.1,3.86977]
[1730864596338,0.36292876,2584.6,2584.4,3.86934]
[1730864596545,0.36292876,2584.6,2584.5,3.86922]
[1730864597651,0.36292876,2584.6,2584.5,4.64308]
[1730864600312,0.17202659,2584.6,2584.5,4.64308]
[1730864600745,0.7874,2585.4,2584.5,4.64308]
[1730864600746,0.55,2585.3,2585.0,3.86837]
[1730864601645,0.01,2585.0,2584.6,3.86897]
[1730864601881,0.01,2585.2,2584.8,3.86873]
[1730864602185,0.01,2585.2,2584.6,3.86897]
[1730864602186,0.01,2585.0,2584.7,3.86889]
[1730864602489,0.01,2585.0,2584.9,3.86862]
[1730864603858,0.01,2585.0,2584.7,3.86889]
[1730864604799,0.01,2585.0,2584.7,7.7377]
[1730864604963,0.01,2584.6,2583.9,0.7815]
[1730864605164,0.56,2584.6,2584.0,7.73981]
[1730864605499,0.01,2584.4,2584.1,3.86967]
[1730864605799,0.01,2584.4,2583.8,3.87021]
[1730864605967,3.56,2584.4,2583.8,3.87021]
[1730864606165,0.56,2584.4,2583.9,3.87009]
[1730864606498,0.01,2584.2,2583.8,3.87021]
[1730864606668,0.01,2584.2,2583.5,0.7815]
[1730864606669,0.01,2584.0,2583.6,3.87052]
[1730864607799,0.55,2583.8,2583.4,3.87084]
[1730864608301,3.01,2583.7,2583.1,3.87128]
[1730864608600,0.55,2583.6,2583.2,3.87116]
[1730864608895,0.01,2583.7,2583.2,3.87116]
[1730864608896,0.01,2583.7,2583.3,3.871]
[1730864609190,0.55,2583.8,2583.5,3.87069]
[1730864609754,0.55,2583.8,2583.3,3.87101]
[1730864609950,0.56,2583.8,2583.1,3.87126]
[1730864610167,0.01,2583.6,2582.9,3.87149]
[1730864610372,0.56,2583.6,2583.1,3.87128]
[1730864610598,0.55,2583.6,2583.1,3.87128]
[1730864610804,0.01,2583.6,2583.3,3.87098]
[1730864611015,0.01,2583.6,2582.7,4.65335]
[1730864611016,0.55,2583.8,2583.6,3.87045]
[1730864611172,0.55,2583.8,2583.6,3.87055]
[1730864611499,0.01,2583.8,2583.4,3.87074]
[1730864611653,0.01,2584.2,2583.7,3.8704]
[1730864611998,0.7762,2584.3,2582.8,7.68129732]
[1730864611999,0.01,2583.9,2583.4,3.87072]
[1730864612199,0.01,2583.8,2583.2,3.87104]
[1730864612383,0.01,2583.6,2583.2,3.87104]
[1730864612599,3.88028,2583.8,2583.2,3.87104]
[1730864612805,0.01,2583.6,2583.2,3.87104]
[1730864613113,3.55,2583.7,2583.2,3.87104]
[1730864613314,0.01,2583.6,2583.3,3.871]
[1730864613514,0.56,2583.8,2583.2,3.87104]
[1730864613716,0.55,2583.8,2583.4,3.8708]
[1730864613871,0.56,2584.0,2583.6,3.87056]
[1730864614074,0.01,2583.9,2583.6,3.87056]
[1730864614273,0.55,2584.1,2583.7,3.87041]
[1730864614472,0.01,2584.2,2583.6,3.87056]
[1730864614473,0.01,2583.9,2583.6,3.87053]
[1730864614915,0.01,2584.1,2583.2,3.87105]
[1730864615114,3.01,2583.9,2583.2,3.87105]
[1730864615319,0.55,2583.8,2583.2,3.87105]
[1730864615471,3.0,2583.7,2583.2,3.87105]
[1730864615670,0.56,2583.6,2583.0,3.8714]
[1730864615876,0.55,2583.4,2583.0,3.8714]
[1730864616184,0.55,2583.4,2583.0,3.87135]
[1730864616370,0.55,2583.4,2582.3,7.68129732]
[1730864616371,0.56,2583.2,2582.3,0.8294]
[1730864616575,0.56,2583.2,2581.8,7.69129732]
[1730864616576,3.56,2583.0,2582.4,3.87236]
[1730864616878,0.01,2582.4,2582.1,3.87271]
[1730864617421,0.56,2582.6,2582.1,3.87271]